Cogmind - Beta 12 @@@ ROGUE MODE // 2023.08.31 @ 10:12:33 Player: art-hropod Result: Self-destructed Performance ------------- Evolutions (1) 500 Regions Visited (2) 400 Robots Destroyed (18) 90 Value Destroyed (446) 446 Prototype IDs (1) 20 Alien Tech Used (0) 0 Bonus (0) 0 TOTAL SCORE: 1456 Bonus ------- None Cogmind --------- Core Integrity 371/400 Matter 251/300 Energy 265/265 System Corruption 0% Temperature Cool (37) Movement Walking (120) Location -9/Materials Parts ------- > --- POWER (1) -------- Improved Ion Engine > --- PROPULSION (4) --- Aluminum Leg Aluminum Leg > --- UTILITY (2) ------ Small Storage Unit Signal Interpreter > --- WEAPON (2) ------- (None) > --- INVENTORY (8) ---- VTOL Module VTOL Module VTOL Module VTOL Module VTOL Module Improved Flight Unit Sensor Array Peak State ------------ > --- POWER ------------ Improved Ion Engine > --- PROPULSION ------- Aluminum Leg Aluminum Leg Aluminum Leg Aluminum Leg > --- UTILITY ---------- Small Storage Unit Signal Interpreter > --- WEAPON ----------- Medium Laser Mining Laser > --- INVENTORY -------- Aluminum Leg VTOL Module VTOL Module VTOL Module VTOL Module VTOL Module Improved Flight Unit Sensor Array [Rating: 11] Favorites ----------- Power Improved Ion Engine Engine Improved Ion Engine Propulsion Aluminum Leg Leg Aluminum Leg Flight Unit Improved Flight Unit Utility Small Storage Unit Storage Small Storage Unit Processor Signal Interpreter Weapon Medium Laser Energy Gun Medium Laser Launcher Grenade Launcher Special Weapon Mining Laser Build | -11 -10 -9 ------- Run | Jun Mat Mat Slots Evolved 2 | . . 2 Power . | . . . Propulsion 2 | . . 2 Utility . | . . . Weapon . | . . . Parts Attached 22 | 6 10 6 Power 3 | 1 2 . Engine 3 | 1 2 . Core . | . . . Reactor . | . . . Propulsion 11 | 2 4 5 Treads . | . . . Leg 10 | 2 3 5 Wheel . | . . . Hover . | . . . Flight 1 | . 1 . Utility 2 | 1 1 . Device . | . . . Storage 1 | 1 . . Processor 1 | . 1 . Hackware . | . . . Protection . | . . . Artifact . | . . . Weapon 6 | 2 3 1 Energy Gun 4 | 2 2 . Energy Cannon . | . . . Ballistic Gun . | . . . Ballistic Cannon . | . . . Launcher 1 | . 1 . Special Weapon 1 | . . 1 Impact Weapon . | . . . Slashing Weapon . | . . . Piercing Weapon . | . . . Special Melee Weapon . | . . . Unidentified Prototypes 1 | . 1 . Parts Lost 6 | . 2 4 Power 1 | . 1 . Propulsion 3 | . . 3 Utility . | . . . Weapon 2 | . 1 1 Highest Loss Streak 3 | . 2 3 To Critical Strikes . | . . . Average Slot Usage (%) 89 | . 90 87 Engine 13 | . 14 11 Leg 31 | . 27 40 Storage 13 | . 14 11 Processor 7 | . 6 11 Energy Gun 19 | . 23 10 Launcher 2 | . 3 . Naked Turns . | . . . Heaviest Build 17 | 14 17 15 Greatest Support 40 | 20 20 40 Greatest Overweight (x) 1 | . 1 . Average Overweight (x) . | . . . Largest Inventory Capacity 8 | 8 8 8 Average Capacity 7 | 7 8 8 Most Carried 8 | 8 8 8 Average Carried 7 | 4 7 7 Final Capacity 8 | 8 8 8 Final Carried 8 | 6 8 7 Class Distribution -------------------- 81% | Mutant 18% | Scavenger-Mutant Dominant Class ---------------- Mutant | -10/Materials Scavenger-Mutant | -9/Materials Resources | -11 -10 -9 ----------- Run | Jun Mat Mat Matter Collected 421 | 209 162 50 Remotely . | . . . Salvage Created 561 | . 511 50 Parts 34 | . 33 1 Haulers Intercepted 1 | . 1 . Recyclers Shooed . | . . . Parts Field Recycled . | . . . Retrieved Matter . | . . . Parts Self-Destructed . | . . . Prevented . | . . . Kills | -11 -10 -9 ------- Run | Jun Mat Mat Combat Hostiles Destroyed 13 | . 12 1 Guns 9 | . 8 1 AOE 4 | . 4 . Classes Destroyed 6 | . 6 . Worker 1 | . 1 . Builder 1 | . 1 . Hauler 1 | . 1 . Watcher 2 | . 2 . Swarmer 3 | . 3 . Grunt 10 | . 9 1 Best Kill Streak 4 | . 4 1 Combat Bots Only 3 | . 3 1 Max Kills in Single Turn 2 | . 2 1 Gunslinging 1 | . 1 . Exploded 2 | . 2 . Melee . | . . . Uniques/NPCs Destroyed . | . . . Combat | -11 -10 -9 -------- Run | Jun Mat Mat Damage Taken 885 | . 450 435 Core 97 | . 68 29 Absorbed by Shields . | . . . Core Remaining (%) 86 | 100 72 . Volleys Fired 50 | 1 41 8 Largest 2 | 2 2 1 Hottest 100 | 80 90 100 Shots Fired 73 | 2 63 8 Gun 63 | 2 56 5 Cannon . | . . . Launcher 7 | . 7 . Special 3 | . . 3 Kinetic . | . . . Thermal 47 | . 39 8 Explosive 7 | . 7 . Electromagnetic 19 | 2 17 . Robot Hit Streak 6 | . 5 6 Robot Miss Streak 3 | 2 3 1 Penetration Max . | . . . Secondary Targets 1 | . 1 . Max Gunslinging Chain 1 | . 1 . Shots Hit Robots 39 | . 35 4 Core Hits 25 | . 23 2 Critical Kills . | . . . Critical Parts Destroyed . | . . . Critical Strikes 3 | . 3 . Burn 3 | . 3 . Melee Attacks . | . . . Impact . | . . . Slashing . | . . . Piercing . | . . . Sneak Attacks . | . . . Combat Hostiles . | . . . Follow-up Attacks . | . . . Damage Inflicted 901 | . 847 54 Guns 476 | . 426 50 Cannons . | . . . Explosions 421 | . 421 . Melee . | . . . Ramming 4 | . . 4 Kinetic . | . . . Thermal 456 | . 406 50 Explosive 319 | . 319 . Electromagnetic 122 | . 122 . Impact . | . . . Slashing . | . . . Piercing . | . . . Highest Corruption 4 | . 4 . Average Corruption 4 | . 4 . Corruption Purged . | . . . Corruption Blocked . | . . . Effects 8 | . 8 . Message Errors 1 | . 1 . Matter Fused 2 | . 2 . Heat Flow Errors 1 | . 1 . Energy Discharges 1 | . 1 . Parts Rejected 1 | . 1 . Data Loss (minor) 1 | . 1 . Data Loss (major) 1 | . 1 . Overload Shots . | . . . Overflow Damage . | . . . Projectiles . | . . . Explosions . | . . . Melee . | . . . Knockbacks . | . . . Impact . | . . . Kinetic . | . . . Secondary . | . . . Self-Inflicted Damage 50 | . 50 . Shots 1 | . 1 . Rammed . | . . . Targets Rammed 1 | . . 1 Kicked 1 | . . 1 Crushed . | . . . Highest Temperature 252 | 18 252 63 Average Temperature 62 | 12 69 21 Received Heat Transfer 285 | . 174 111 Siege Activations . | . . . Robots Corrupted 1 | . 1 . Combat Hostiles . | . . . Parts Fried 2 | . 2 . Impact Corruptions . | . . . Robots Melted . | . . . Combat Hostiles . | . . . Parts Melted 2 | . 2 . Heat Transferred 1308 | . 1160 148 Parts Sabotaged . | . . . Parts Stolen . | . . . Parts Stripped . | . . . Power Chain Reactions 1 | . 1 . Missiles Intercepted . | . . . Alert | -11 -10 -9 ------- Run | Jun Mat Mat Peak Influence 308 | . 308 105 Initial 78 | . . 78 Average 104 | . 129 83 Maximum Alert Level 1 | . 1 . Low Security (%) 91 | 100 86 100 Level 1 8 | . 13 . Level 2 . | . . . Level 3 . | . . . Level 4 . | . . . Level 5 . | . . . High Security . | . . . Max Security . | . . . Squads Dispatched 2 | . 2 . Investigation 1 | . 1 . Extermination . | . . . Reinforcement 1 | . 1 . Assault . | . . . Garrison . | . . . Intercept . | . . . Searches Triggered . | . . . Construction Impeded . | . . . Haulers Reinforced . | . . . Active Scanning Responses . | . . . Cargo Convoy Interrupts . | . . . Stealth | -11 -10 -9 --------- Run | Jun Mat Mat Distress Signals . | . . . Communications Jammed . | . . . Distress Signals . | . . . Times Spotted 24 | . 20 4 Peak Tracking Total 5 | . 5 4 Tactical Retreats . | . . . Traps | -11 -10 -9 ------- Run | Jun Mat Mat Traps Triggered 3 | . 1 2 Indirectly . | . . . Trap Hack Attempts . | . . . Triggered . | . . . Disarmed . | . . . Reprogrammed . | . . . Reused . | . . . Traps Extracted . | . . . Installed . | . . . Triggered 1 | . 1 . Machines | -11 -10 -9 ---------- Run | Jun Mat Mat Machines Disabled 1 | . 1 . Max in Single Turn 1 | . 1 . Machines Repaired . | . . . Machines Sabotaged . | . . . Overloaded Fab Kills . | . . . Hacking | -11 -10 -9 --------- Run | Jun Mat Mat Machines Accessed 3 | . 3 . Terminals 3 | . 3 . Fabricators . | . . . Repair Stations . | . . . Recycling Units . | . . . Scanalyzers . | . . . Garrison Access . | . . . Total Hacks 6 | . 6 . Successful 1 | . 1 . Failed 5 | . 5 . Catastrophic 2 | . 2 . Database Lockouts . | . . . Manual 6 | . 6 . Terminals 6 | . 6 . Fabricators . | . . . Repair Stations . | . . . Recycling Units . | . . . Scanalyzers . | . . . Garrison Access . | . . . Terminal Hacks . | . . . Fabricator Hacks . | . . . Repair Station Hacks . | . . . Recycling Unit Hacks . | . . . Scanalyzer . | . . . Garrison Access Hacks . | . . . Unauthorized Hacks 1 | . 1 . Terminals 1 | . 1 . Botnet 1 | . 1 . Fabricators . | . . . Repair Stations . | . . . Recycling Units . | . . . Scanalyzers . | . . . Garrison Access . | . . . Data Cores Recovered . | . . . Used . | . . . Hacking Detections 3 | . 3 . Full Trace Events . | . . . Feedback Events . | . . . Feedback Blocked . | . . . Robot Schematics Acquired . | . . . Robots Built . | . . . Authchips . | . . . Time . | . . . Total Robot Build Rating . | . . . Part Schematics Acquired . | . . . Parts Built . | . . . Authchips . | . . . Time . | . . . Total Part Build Rating . | . . . Parts Repaired . | . . . Time . | . . . Parts Recycled . | . . . Recycled Matter . | . . . Retrieved Matter . | . . . Retrieved Components . | . . . Parts Scanalyzed . | . . . Part Schematics Acquired . | . . . Parts Damaged . | . . . Bothacking | -11 -10 -9 ------------ Run | Jun Mat Mat Used RIF Installer . | . . . Robots Hacked . | . . . Non-combat . | . . . Combat . | . . . Robot Hacks Applied . | . . . Relay Couplers Released . | . . . Fabnet Peak Effective % . | . . . Robots Rewired . | . . . Allies Hacked . | . . . Hacks Repelled . | . . . Allies | -11 -10 -9 -------- Run | Jun Mat Mat Total Allies . | . . . Largest Group . | . . . Highest-Rated Group . | . . . Highest-Rated Ally . | . . . Total Orders . | . . . Ally Attacks . | . . . Total Damage . | . . . Kills . | . . . Allies Corrupted . | . . . Allies Melted . | . . . Intel | -11 -10 -9 ------- Run | Jun Mat Mat Robot Analysis Total . | . . . Derelict Logs Recovered . | . . . Drone Launches . | . . . Drone Recoveries . | . . . Exploration | -11 -10 -9 ------------- Run | Jun Mat Mat Turns Passed 821 | 80 512 229 Spaces Moved 513 | 56 303 154 Core 11 | 11 . . Treads . | . . . Legs 502 | 45 303 154 Wheels . | . . . Hover . | . . . Flight . | . . . Fastest Speed 50 | 50 120 120 Average Speed 119 | 106 121 120 Slowest Speed 190 | 120 190 120 Overloaded Moves . | . . . Propulsion Burnouts . | . . . Robots Hopped . | . . . Cave-ins Triggered 1 | . . 1 Exploration Rate (%) 26 | 3 56 19 Regions Visited 2 Branch Regions . Pre-discovered Areas . | . . . Known Exits Taken 1 | . 1 . Unknown Exits Taken 1 | 1 . . Scrap Searched . | . . . Spaces Dug 3 | . . 3 Terrain Destroyed 21 | . 18 3 Melee . | . . . Projectile 3 | . . 3 AOE 18 | . 18 . Terrain Rammed . | . . . Walls Destroyed . | . . . Machines Disabled . | . . . Actions | -11 -10 -9 --------- Run | Jun Mat Mat Total 643 | 74 386 183 Wait 19 | . 9 10 Move 511 | 55 302 154 Hop . | . . . Pick Up 28 | 12 12 4 Fast Attach 5 | . 4 1 Attach 14 | 6 3 5 Detach . | . . . Swap 3 | . 3 . Drop 12 | . 12 . Fire 50 | 1 41 8 Melee . | . . . Ram . | . . . Kick 1 | . . 1 Crush . | . . . Escape Stasis . | . . . Rewire . | . . . Trap . | . . . Miscellaneous . | . . . Route ------- -11/Junkyard -10/Materials (discovered 2 exits: *Mat / *Min) -9/Materials (discovered 2 exits: [*Min] / *Sto) History --------- Turn | Location | Event 6 | -11/Junkyard | Discovered new exit (range 15) 81 | -11/Junkyard | Entered Materials 314 | -10/Materials | Build established: Mutant 329 | -10/Materials | Discovered new exit (range 15) 372 | -10/Materials | Identified exit to Mines 567 | -10/Materials | Discovered new exit (range 16) 592 | -10/Materials | Identified exit to Materials 593 | -10/Materials | Entered another Materials area 593 | -9/Materials | Evolved 2 slots: Propulsion x2 613 | -9/Materials | Discovered new exit (range 15) 630 | -9/Materials | Identified exit to Storage 739 | -9/Materials | Crushed by falling debris 774 | -9/Materials | Discovered new exit (range 16) 822 | -9/Materials | Self-destructed Last Messages --------------- 00779_ Triggered Blade Trap. 00779_ Massive razor-sharp blades shoot up from within the floor. 00779_ Aluminum Leg severed. 00781_ Acquired Aluminum Leg. 00783_ Triggered Blade Trap. 00783_ Massive razor-sharp blades shoot up from within the floor. 00783_ Mining Laser severed. 00783_ Aluminum Leg severed. 00786_ Acquired Aluminum Leg. 00786_ R-06 Scavenger collects Mining Laser. 00795_ U-05 Engineer lays Concrete. 00814_ G-34 Mercenary destroyed. 00815_ Aluminum Leg destroyed. 00819_ Med. Laser destroyed. 00820_ Acquired 50 matter. 00820_ R-06 Scavenger collects Sml. Laser. 00821_ Kicked G-47 Trooper out of the way. 00821_ Aluminum Leg destroyed. Map ----- +----------------------------------------------------+ | ?????????????????????????????????????????????????? | | ?????????????????????????????????????????????????? | | ?????????????????????????????????????????????????? | | ?????????????????????????????????????????????????? | | ?????????????????????????????????????????????????? | | ?????????????????????????????????????????????????? | | ?????????????????????????????????????????????????? | | ?????????????????????????????????????????????????? | | ?????????????????????????????????????????????????? | | ?????????????????????????????????????????????????? | | ?????????????????????????????????????????????????? | | ?????????????????????????????????????????????????? | | ?????????????????????????????????????????????????? | | ?????????????????????????????????????????????????? | | ?????????????????????????????????????????????????? | | ?????????????????????????????????????????????????? | | ?????????????????????????????????????????????????? | | ?????????????????????????????????????????????????? | | ???????????????????????########??????????????????? | | ???????????????????????# #??????????????????? | | ???????????????????????# #??????????????????? | | ???????????????????????# """#??????????????????? | | ???????????????#######?# """#??????????????????? | | ???????????????#""""""?# """#??????????######### | | ???????????????#" |"! "# #??????????# | | ???????????##+##" "##@################ | | ?????????? ggY ^^ | | ?????????? < r ^ ################# | | ?????????? #?????????????# | | ???????????##+## ##+########?????????????# | | ???????????????######### ???????????????????# | | ???????????????????????# """ ?????????????????# | | ???????????????????????# """ #????????????????# | | ???????????????????????# """ #??????????????### | | ???????????????????????# #????????####### " | | ???????????????????????# #????????# ## | | ???????????????????????########????????# ""#### | | ???????????????????????????????????????# Y"#??? | | ???????????????????????????????????????# ""#??? | | ???????????????????????????????????????# #??? | | ????????????????????????????????????##?# #??? | | ???????????????????????????????????# #######+# | | ????????????????????????????????????# + | | ????????????????????????????????????# # ##### # | | ??????????????????????????????????????# #???# # | | ??????????????????????????????????????# #???# #? | | ??????????????????????????????????????# #???# #?? | | ??????????????????????????????????#####+##### #??? | | ??????????????????????????????????# # #??? | | ??????????????????????????????????# !! # #??? | +----------------------------------------------------+ Best States ------------- Heat Dissipation 28 Energy Generation 12 Energy Capacity 265 Matter Stores 300 Matter Capacity 300 Sight Range 16 Terrain Scan Density 10 Evasion (%) 55 Item Schematics ----------------- None Robot Schematics ------------------ None Fabricated ------------ Nothing Alien Tech Used ----------------- None Achievements -------------- None Challenges ------------ None Game ------ Seed ChromaticHugeHammer Manual? 0 Play Time 00:12:38 Cumulative 56.8 hours Start 2023.08.31 @ 10:00:35 End 2023.08.31 @ 10:12:33 Sessions 1 Manual Loads 0 Difficulty Rogue Special Mode None Game No. 73 Rogue 57 Adventurer 9 Explorer 7 Win Type - Total 4 Types 4/0/0/0/0/0/0/0/0 Lore% 16 Gallery% 40 Achievement% 30 Wizard Run 0 Options --------- ASCII 0 Keyboard 0 Movement Mouse Keybinds 0 Fullscreen 1 Font 32/Terminus Map View 63x52 Tactical HUD 1 Map Filters NONE Filters NONE Steam 1 RUN: c3c4a149-6537-452f-a06b-9106932b9d7d